[Event "32nd Panamerican Youth 2022"]
[Site "Montevideo"]
[Date "2022.07.02"]
[Round "9.23"]
[White "Contreras Huaman, Fiorella"]
[Black "Ramallo Aguilar, Ariadne Ricela"]
[Result "1-0"]
[ECO "B23"]
[WhiteElo "1924"]
[BlackElo "1477"]
[Annotator "RC"]
[PlyCount "117"]
[EventDate "2022.06.26"]
[EventType "swiss"]
[EventCountry "URU"]
[SourceTitle "playchess.com"]
[Source "ChessBase"]
[SourceQuality "1"]
[TimeControl "5400+30"]

1. e4 {[%emt 0:06:38]} c5 {[%emt 0:00:04]} 2. Nc3 {[%emt 0:00:05]} e6 {[%emt 0:00:04]} 3. g3 {[%emt 0:00:06]} d5 {[%emt 0:00:23]} 4. d3 {[%emt 0:02:07]} Nc6 {[%emt 0:00:28]} 5. Bg2 {[%emt 0:00:08]} Nf6 {[%emt 0:00:13]} 6. Nge2 {[%emt 0:01:02]} d4 {[%emt 0:03:01]} 7. Nb1 {[%emt 0:00:56]} Be7 {[%emt 0:05:28]} 8. O-O {[%emt 0:00:12]} O-O {[%emt 0:00:31]} 9. f4 {[%emt 0:00:26]} a6 {[%emt 0:03:34]} 10. h3 {[%emt 0:01:05]} b5 {[%emt 0:01:44]} 11. Nd2 {[%emt 0:01:19]} Bb7 {[%emt 0:00:12]} 12. g4 {[%emt 0:00:07]} Rc8 {[%emt 0:06:40]} 13. Ng3 {[%emt 0:01:39]} Na5 {[%emt 0:01:19]} 14. f5 {[%emt 0:02:08]} exf5 {[%emt 0:00:24]} 15. Nxf5 {[%emt 0:01:43]} c4 {[%emt 0:01:25]} 16. Nf3 {[%emt 0:02:05]} cxd3 {[%emt 0:05:07]} 17. cxd3 {[%emt 0:00:09]} Nc6 {[%emt 0:01:17]} 18. Bg5 {[%emt 0:15:09]} Nd7 {[%emt 0:02:13]} 19. Nxe7+ {[%emt 0:03:44]} Nxe7 {[%emt 0:00:09]} 20. Nxd4 {[%emt 0:00:41]} Ne5 {[%emt 0:01:46]} 21. Be3 {[%emt 0:08:36]} Qd7 {[%emt 0:01:22]} 22. Qb3 {[%emt 0:01:02]} Rc7 {[%emt 0:03:33]} 23. Rad1 {[%emt 0:01:12]} Rfc8 {[%emt 0:00:24]} 24. Rf2 {[%emt 0:03:25]} N7g6 {[%emt 0:04:52]} 25. Nf5 {[%emt 0:01:05]} a5 {[%emt 0:00:42]} 26. d4 {[%emt 0:05:19]} Nc4 {[%emt 0:00:20]} 27. Bg5 {[%emt 0:03:07]} a4 {[%emt 0:01:19]} 28. Qg3 {[%emt 0:01:43]} Re8 {[%emt 0:07:36]} 29. b3 {[%emt 0:01:07]} axb3 {[%emt 0:00:37]} 30. axb3 {[%emt 0:00:02]} Na3 {[%emt 0:01:18]} 31. Nd6 {[%emt 0:00:28]} Rf8 {[%emt 0:03:02]} 32. Nxb7 {[%emt 0:02:10]} Rxb7 {[%emt 0:00:06]} 33. e5 {[%emt 0:01:03]} Rbb8 {[%emt 0:00:29]} 34. d5 {[%emt 0:00:22]} Rfe8 {[%emt 0:01:45]} 35. Re1 {[%emt 0:00:55]} Rbc8 {[%emt 0:00:52]} 36. Bf4 {[%emt 0:03:51]} Nc2 {[%emt 0:02:19]} 37. Ref1 {[%emt 0:00:27]} b4 {[%emt 0:00:31]} 38. Kh2 {[%emt 0:11:26]} Rc3 {[%emt 0:06:05]} 39. Rf3 {[%emt 0:00:21]} Rec8 {[%emt 0:00:12]} 40. Qf2 {[%emt 0:04:36]} Rxf3 {[%emt 0:01:25]} 41. Qxf3 Nd4 {[%emt 0:00:14]} 42. Qe4 {[%emt 0:03:02]} Nxb3 {[%emt 0:00:31]} 43. Qxb4 {[%emt 0:00:10]} Nc5 {[%emt 0:00:32]} 44. Bg3 {[%emt 0:00:34]} Nd3 {[%emt 0:02:59]} 45. Qd4 {[%emt 0:01:15]} Nc1 {[%emt 0:00:44]} 46. Qe3 {[%emt 0:00:52]} Na2 {[%emt 0:01:00]} 47. Ra1 {[%emt 0:03:40]} Nb4 {[%emt 0:01:12]} 48. Ra7 {[%emt 0:00:46]} Qe8 {[%emt 0:04:25]} 49. Qe4 {[%emt 0:02:58]} Qf8 {[%emt 0:02:52]} 50. Ra4 {[%emt 0:02:10]} Nc2 {[%emt 0:00:29]} 51. d6 {[%emt 0:00:37]} Qe8 {[%emt 0:00:57]} 52. Ra2 {[%emt 0:00:12]} Nb4 {[%emt 0:00:43]} 53. Qxb4 {[%emt 0:00:08]} Nxe5 {[%emt 0:00:08]} 54. Re2 {[%emt 0:00:44]} f6 {[%emt 0:00:17]} 55. Qd4 {[%emt 0:00:51]} Rd8 {[%emt 0:00:42]} 56. Bxe5 {[%emt 0:00:31]} fxe5 {[%emt 0:00:06]} 57. Qd5+ {[%emt 0:00:18]} Kh8 {[%emt 0:00:12]} 58. Qxe5 {[%emt 0:00:04]} Qa4 {[%emt 0:00:36]} 59. Re4 1-0

[Event "32nd Panamerican Youth 2022"]
[Site "Montevideo"]
[Date "2022.07.02"]
[Round "9.24"]
[White "Montiel Caceres, Helen"]
[Black "D`souza, Carina"]
[Result "1/2-1/2"]
[ECO "A13"]
[WhiteElo "1763"]
[BlackElo "1471"]
[Annotator "NA RC"]
[PlyCount "66"]
[EventDate "2022.06.26"]
[EventType "swiss"]
[EventCountry "URU"]
[SourceTitle "playchess.com"]
[Source "ChessBase"]
[SourceQuality "1"]
[TimeControl "5400+30"]

1. c4 e6 2. Nf3 d5 3. e3 c6 4. Nc3 Nf6 5. b3 Nbd7 6. Qc2 c5 7. Bb2 Be7 {[%emt 0:21:32]} 8. d4 {[%emt 0:02:15]} cxd4 {[%emt 0:10:45]} 9. exd4 {[%emt 0:00:05]} O-O {[%emt 0:00:45]} 10. Bd3 {[%emt 0:00:04]} h6 {[%emt 0:04:31]} 11. O-O {[%emt 0:00:06]} b6 {[%emt 0:08:13]} 12. Ne5 {[%emt 0:05:02]} Bb7 {[%emt 0:03:32]} 13. Rfd1 {[%emt 0:02:12]} Rc8 {[%emt 0:06:58]} 14. Qe2 {[%emt 0:00:27]} Re8 {[%emt 0:03:52]} 15. Rac1 {[%emt 0:01:42]} Bf8 {[%emt 0:00:53]} 16. cxd5 {[%emt 0:14:22]} Nxd5 {[%emt 0:02:21]} 17. Nxd5 {[%emt 0:02:04]} Bxd5 {[%emt 0:00:51]} 18. Bb5 {[%emt 0:00:41]} Nxe5 {[%emt 0:11:02]} 19. Bxe8 {[%emt 0:00:16]} Ng6 {[%emt 0:00:18]} 20. Bb5 {[%emt 0:01:05]} Qg5 {[%emt 0:05:30]} 21. f3 {[%emt 0:03:38]} Nf4 {[%emt 0:00:30]} 22. Rxc8 {[%emt 0:00:30]} Nxe2+ {[%emt 0:00:30]} 23. Bxe2 {[%emt 0:00:30]} Qe7 {[%emt 0:00:30]} 24. Rdc1 {[%emt 0:00:30]} Kh7 {[%emt 0:00:30]} 25. Bd3+ {[%emt 0:00:30]} f5 {[%emt 0:00:30]} 26. R1c7 {[%emt 0:00:30]} Qb4 {[%emt 0:00:30]} 27. Bc3 {[%emt 0:00:30]} Qa3 {[%emt 0:00:30]} 28. Rd7 {[%emt 0:00:30]} Bb4 {[%emt 0:00:30]} 29. Bxb4 {[%emt 0:00:30]} Qxb4 {[%emt 0:00:30]} 30. Kf1 {[%emt 0:00:30]} Qxd4 {[%emt 0:00:30]} 31. Be2 {[%emt 0:00:30]} Qa1+ {[%emt 0:00:30]} 32. Kf2 {[%emt 0:00:30]} Qd4+ {[%emt 0:00:30]} 33. Kf1 {[%emt 0:00:30]} Qa1+ {[%emt 0:00:30]} 1/2-1/2

[Event "32nd Panamerican Youth 2022"]
[Site "Montevideo"]
[Date "2022.07.02"]
[Round "9.25"]
[White "Flores Quillas, Diego Saul Rodri"]
[Black "Fiorito, Joaquin"]
[Result "1/2-1/2"]
[ECO "B19"]
[WhiteElo "2172"]
[BlackElo "2310"]
[Annotator "TA"]
[PlyCount "46"]
[EventDate "2022.06.26"]
[EventType "swiss"]
[EventCountry "URU"]
[SourceTitle "playchess.com"]
[Source "ChessBase"]
[SourceQuality "1"]
[TimeControl "5400+30"]

{[%evp 26,33,21,9,17,0,18,-20,-16,0]} 1. e4 c6 2. d4 d5 3. Nc3 {[%cal Bb1c3,Bc3e4,Be4g3][%mdl 32]} dxe4 4. Nxe4 Bf5 5. Ng3 Bg6 6. h4 h6 7. Nf3 Nd7 8. h5 Bh7 9. Bd3 Bxd3 10. Qxd3 Ngf6 11. Bd2 e6 12. O-O-O Be7 13. Kb1 O-O 14. Ne4 {The position is equal.} c5 {B19: Classical Caro-Kann: 4...Bf5 main line.} 15. g4 Nxg4 {[#] ...f5 is the strong threat.} 16. Rhg1 f5 {Strongly threatening ...Rf7.} 17. Qc4 {[%csl LRc5,LRe6] [#] An interesting draw.  Weighted Error Value: White=0.11 (very precise) /Black=0.00 (flawless)} {Predecessor:} Qb6 $146 18. dxc5 Qc6 19. Bc3 b5 20. Qe2 b4 21. Bxb4 Rab8 22. Bc3 e5 23. Rxd7 Qxd7 {1-0 (31) Ding,Y (2439)-Gunina,V (2548) Ningbo 2015} 1/2-1/2

[Event "32nd Panamerican Youth 2022"]
[Site "Montevideo"]
[Date "2022.07.02"]
[Round "9.25"]
[White "Reyes Zavaleta, Fabian Ricardo"]
[Black "Toro, Miguel Angel"]
[Result "*"]
[ECO "B19"]
[WhiteElo "2055"]
[BlackElo "2026"]
[Annotator "NA RC"]
[PlyCount "30"]
[EventDate "2022.06.26"]
[EventType "swiss"]
[EventCountry "URU"]
[SourceTitle "playchess.com"]
[Source "ChessBase"]
[SourceQuality "1"]
[TimeControl "5400+30"]

1. e4 c6 2. d4 d5 3. Nc3 dxe4 4. Nxe4 Bf5 5. Ng3 Bg6 6. h4 h6 7. Nf3 Nd7 8. h5 Bh7 9. Bd3 Bxd3 10. Qxd3 Ngf6 11. Bd2 e6 12. O-O-O Be7 13. Kb1 O-O 14. Ne4 c5 15. g4 Nxg4 *

[Event "32nd Panamerican Youth 2022"]
[Site "Montevideo"]
[Date "2022.07.02"]
[Round "9.26"]
[White "Arias Diaz, Miguel Angel"]
[Black "Vasquez Vargas, Henry Richard"]
[Result "0-1"]
[ECO "E48"]
[WhiteElo "1848"]
[BlackElo "2067"]
[Annotator "NA RC"]
[PlyCount "82"]
[EventDate "2022.06.26"]
[EventType "swiss"]
[EventCountry "URU"]
[SourceTitle "playchess.com"]
[Source "ChessBase"]
[SourceQuality "1"]
[TimeControl "5400+30"]

1. d4 {[%emt 0:00:01]} Nf6 {[%emt 0:10:43]} 2. c4 {[%emt 0:00:06]} e6 {[%emt 0:01:20]} 3. Nc3 {[%emt 0:00:06]} Bb4 {[%emt 0:00:05]} 4. e3 {[%emt 0:00:14]} O-O {[%emt 0:00:08]} 5. Bd3 {[%emt 0:00:13]} d5 {[%emt 0:00:06]} 6. cxd5 {[%emt 0:06:10]} exd5 {[%emt 0:00:04]} 7. Nge2 {[%emt 0:00:18]} Re8 {[%emt 0:00:06]} 8. O-O {[%emt 0:03:01]} Bd6 {[%emt 0:00:08]} 9. Ng3 {[%emt 0:14:27]} c6 {[%emt 0:02:26]} 10. Bd2 {[%emt 0:04:38]} h5 {[%emt 0:04:24]} 11. Nxh5 {[%emt 0:34:49]} Ng4 {[%emt 0:21:33]} 12. Ng3 {[%emt 0:02:34]} Qh4 {[%emt 0:01:04]} 13. h3 {[%emt 0:06:13]} Nxf2 {[%emt 0:03:08]} 14. Rxf2 {[%emt 0:01:51]} Bxg3 {[%emt 0:00:07]} 15. Rf1 {[%emt 0:05:14]} Nd7 {[%emt 0:00:17]} 16. Qf3 {[%emt 0:02:48]} Nf6 {[%emt 0:00:40]} 17. Be1 {[%emt 0:01:42]} Bxe1 {[%emt 0:01:12]} 18. Raxe1 {[%emt 0:00:08]} Be6 {[%emt 0:02:19]} 19. e4 {[%emt 0:00:51]} dxe4 {[%emt 0:06:39]} 20. Nxe4 {[%emt 0:00:06]} Nxe4 {[%emt 0:01:54]} 21. Rxe4 {[%emt 0:00:19]} Qh6 {[%emt 0:00:47]} 22. Re5 {[%emt 0:01:42]} Bd5 {[%emt 0:20:17]} 23. Qe2 {[%emt 0:08:22]} Rxe5 {[%emt 0:00:20]} 24. Qxe5 {[%emt 0:00:21]} Qe6 {[%emt 0:01:03]} 25. Re1 {[%emt 0:03:52]} Qxe5 {[%emt 0:01:16]} 26. Rxe5 {[%emt 0:00:24]} Bxa2 {[%emt 0:02:06]} 27. Re7 {[%emt 0:00:29]} Rb8 {[%emt 0:00:08]} 28. Kf2 {[%emt 0:00:49]} Be6 {[%emt 0:00:39]} 29. Rc7 {[%emt 0:00:29]} Kf8 {[%emt 0:00:50]} 30. Be4 {[%emt 0:01:05]} Ke8 {[%emt 0:00:34]} 31. d5 {[%emt 0:00:19]} cxd5 {[%emt 0:00:07]} 32. Bf3 {[%emt 0:00:05]} Kd8 {[%emt 0:00:16]} 33. Rc5 {[%emt 0:00:01]} b6 {[%emt 0:00:12]} 34. Rb5 {[%emt 0:00:31]} a6 {[%emt 0:00:33]} 35. Rb4 {[%emt 0:00:01]} Kc7 {[%emt 0:00:16]} 36. Ra4 {[%emt 0:00:52]} a5 {[%emt 0:00:49]} 37. Ke3 {[%emt 0:00:13]} Kd6 {[%emt 0:00:08]} 38. h4 {[%emt 0:00:54]} Rc8 {[%emt 0:00:48]} 39. Ra3 {[%emt 0:00:18]} Rc4 {[%emt 0:00:22]} 40. g3 {[%emt 0:00:05]} Rb4 {[%emt 0:00:09]} 41. h5 {[%emt 0:00:31]} Rxb2 0-1

[Event "32nd Panamerican Youth 2022"]
[Site "Montevideo"]
[Date "2022.07.02"]
[Round "9.27"]
[White "Carrizo, Luciano Ariel"]
[Black "Amigo Quintana, Antu"]
[Result "1-0"]
[ECO "A45"]
[WhiteElo "2124"]
[BlackElo "2073"]
[Annotator "NA RC"]
[PlyCount "61"]
[EventDate "2022.06.26"]
[EventType "swiss"]
[EventCountry "URU"]
[SourceTitle "playchess.com"]
[Source "ChessBase"]
[SourceQuality "1"]
[TimeControl "5400+30"]

1. d4 {[%emt 0:00:04]} Nf6 {[%emt 0:00:15]} 2. Bf4 {[%emt 0:00:06]} e6 {[%emt 0:00:28]} 3. e3 {[%emt 0:00:09]} d5 {[%emt 0:00:18]} 4. Nf3 {[%emt 0:00:08]} Bd6 {[%emt 0:00:22]} 5. c3 {[%emt 0:00:09]} O-O {[%emt 0:00:22]} 6. Bd3 {[%emt 0:00:27]} c5 {[%emt 0:00:22]} 7. Nbd2 {[%emt 0:00:06]} Qc7 {[%emt 0:04:03]} 8. Bxd6 {[%emt 0:00:08]} Qxd6 {[%emt 0:00:06]} 9. Ne5 {[%emt 0:00:06]} Nfd7 {[%emt 0:09:27]} 10. f4 {[%emt 0:00:37]} f5 {[%emt 0:02:37]} 11. Qf3 {[%emt 0:10:53]} Nf6 {[%emt 0:01:40]} 12. Qh3 {[%emt 0:00:11]} Ne4 {[%emt 0:02:36]} 13. Ndf3 {[%emt 0:00:26]} Nd7 {[%emt 0:04:10]} 14. Nxd7 {[%emt 0:09:03]} Bxd7 {[%emt 0:01:12]} 15. Ne5 {[%emt 0:00:26]} b5 {[%emt 0:04:32]} 16. Bxe4 {[%emt 0:07:43]} dxe4 {[%emt 0:02:52]} 17. dxc5 {[%emt 0:00:14]} Qc7 {[%emt 0:00:13]} 18. O-O {[%emt 0:10:00]} Bc6 {[%emt 0:01:08]} 19. Rfd1 {[%emt 0:06:15]} Bd5 {[%emt 0:00:14]} 20. b4 {[%emt 0:02:59]} a5 {[%emt 0:00:19]} 21. a3 {[%emt 0:00:46]} Ra7 {[%emt 0:01:55]} 22. Qg3 {[%emt 0:11:33]} Rfa8 {[%emt 0:01:15]} 23. Qe1 {[%emt 0:00:17]} Kh8 {[%emt 0:01:17]} 24. Qf1 {[%emt 0:02:03]} Qb7 {[%emt 0:01:48]} 25. c4 {[%emt 0:03:31]} bxc4 {[%emt 0:00:34]} 26. Nxc4 {[%emt 0:00:01]} axb4 {[%emt 0:00:13]} 27. Nb6 {[%emt 0:00:11]} bxa3 {[%emt 0:00:40]} 28. Nxa8 {[%emt 0:00:19]} Rxa8 {[%emt 0:00:29]} 29. Rdb1 {[%emt 0:00:47]} Qc6 {[%emt 0:02:34]} 30. Rxa3 {[%emt 0:00:36]} Qc7 31. Raa1 1-0

[Event "32nd Panamerican Youth 2022"]
[Site "Montevideo"]
[Date "2022.07.02"]
[Round "9.28"]
[White "Reyes Zavaleta, Fabian Ricardo"]
[Black "Toro, Miguel Angel"]
[Result "1-0"]
[ECO "E63"]
[WhiteElo "2055"]
[BlackElo "2026"]
[Annotator "NA RC"]
[PlyCount "155"]
[EventDate "2022.06.26"]
[EventType "swiss"]
[EventCountry "URU"]
[SourceTitle "playchess.com"]
[Source "ChessBase"]
[SourceQuality "1"]
[TimeControl "5400+30"]

1. d4 {[%emt 0:00:05]} Nf6 {[%emt 0:00:11]} 2. c4 {[%emt 0:00:04]} g6 {[%emt 0:00:07]} 3. Nc3 {[%emt 0:00:07]} Bg7 {[%emt 0:00:04]} 4. g3 {[%emt 0:00:07]} O-O {[%emt 0:00:07]} 5. Bg2 {[%emt 0:00:05]} d6 {[%emt 0:00:06]} 6. Nf3 {[%emt 0:00:08]} Nc6 {[%emt 0:01:01]} 7. O-O {[%emt 0:00:15]} a6 {[%emt 0:00:38]} 8. Re1 {[%emt 0:00:23]} Rb8 {[%emt 0:00:22]} 9. Rb1 {[%emt 0:00:07]} Re8 {[%emt 0:00:51]} 10. d5 {[%emt 0:13:55]} Na5 {[%emt 0:00:53]} 11. Qd3 {[%emt 0:02:05]} c5 {[%emt 0:00:30]} 12. b3 {[%emt 0:32:15]} b5 {[%emt 0:02:23]} 13. Bd2 {[%emt 0:03:09]} e6 {[%emt 0:20:03]} 14. Ng5 {[%emt 0:20:19]} h6 {[%emt 0:20:10]} 15. Nge4 {[%emt 0:00:22]} Nxe4 {[%emt 0:01:01]} 16. Nxe4 {[%emt 0:00:32]} exd5 {[%emt 0:05:26]} 17. Qxd5 {[%emt 0:02:27]} Bb7 {[%emt 0:01:30]} 18. Qd3 {[%emt 0:03:52]} Re6 {[%emt 0:04:59]} 19. Nxc5 {[%emt 0:03:24]} dxc5 {[%emt 0:01:47]} 20. Qxd8+ {[%emt 0:00:03]} Rxd8 {[%emt 0:00:08]} 21. Bxa5 {[%emt 0:00:07]} Rd7 {[%emt 0:00:42]} 22. Bxb7 {[%emt 0:01:38]} Rxb7 {[%emt 0:00:02]} 23. e3 {[%emt 0:01:52]} Rd6 {[%emt 0:01:11]} 24. Rbd1 {[%emt 0:01:02]} Rxd1 {[%emt 0:00:46]} 25. Rxd1 {[%emt 0:00:02]} bxc4 {[%emt 0:00:06]} 26. bxc4 {[%emt 0:00:14]} Rb2 {[%emt 0:00:09]} 27. Rd8+ {[%emt 0:00:14]} Kh7 {[%emt 0:00:35]} 28. Rc8 {[%emt 0:00:19]} Rxa2 {[%emt 0:00:23]} 29. Rxc5 {[%emt 0:00:02]} Bf8 {[%emt 0:00:43]} 30. Rc8 {[%emt 0:05:21]} Rxa5 {[%emt 0:00:10]} 31. Rxf8 {[%emt 0:00:01]} Kg7 {[%emt 0:00:27]} 32. Ra8 {[%emt 0:00:41]} Rc5 {[%emt 0:00:14]} 33. Rxa6 {[%emt 0:00:03]} Rxc4 {[%emt 0:00:05]} 34. Kg2 {[%emt 0:00:13]} Rc2 {[%emt 0:00:04]} 35. g4 {[%emt 0:00:11]} Rb2 {[%emt 0:00:25]} 36. Kg3 {[%emt 0:01:54]} Kf8 {[%emt 0:00:18]} 37. h4 {[%emt 0:00:11]} Kg7 {[%emt 0:00:31]} 38. f4 {[%emt 0:01:57]} Rb3 {[%emt 0:00:37]} 39. Kf3 {[%emt 0:00:01]} Rb4 {[%emt 0:00:11]} 40. Ra5 {[%emt 0:00:16]} Rb1 {[%emt 0:01:27]} 41. h5 {[%emt 0:00:22]} gxh5 {[%emt 0:03:01]} 42. Rxh5 {[%emt 0:00:01]} Rf1+ {[%emt 0:00:20]} 43. Ke4 {[%emt 0:00:12]} Kg6 {[%emt 0:00:58]} 44. Rb5 {[%emt 0:00:40]} Ra1 {[%emt 0:00:28]} 45. Rb6+ {[%emt 0:01:09]} Kg7 {[%emt 0:00:14]} 46. f5 {[%emt 0:01:46]} Ra4+ {[%emt 0:00:31]} 47. Kf3 {[%emt 0:00:02]} Ra1 {[%emt 0:01:08]} 48. Rb2 {[%emt 0:00:56]} Kf6 {[%emt 0:01:12]} 49. Rh2 {[%emt 0:00:39]} Kg7 {[%emt 0:00:04]} 50. Rf2 {[%emt 0:00:07]} Kf6 {[%emt 0:00:09]} 51. Kf4 {[%emt 0:00:08]} Kg7 {[%emt 0:02:00]} 52. e4 {[%emt 0:00:19]} Rb1 {[%emt 0:00:35]} 53. Rc2 {[%emt 0:03:07]} Rf1+ {[%emt 0:00:23]} 54. Ke5 {[%emt 0:00:16]} Ra1 {[%emt 0:02:01]} 55. Rc7 {[%emt 0:01:50]} Ra6 {[%emt 0:06:59]} 56. Kf4 {[%emt 0:00:42]} Ra4 {[%emt 0:00:20]} 57. Ke5 {[%emt 0:00:51]} Ra6 {[%emt 0:00:04]} 58. Rd7 {[%emt 0:00:08]} Ra5+ {[%emt 0:00:33]} 59. Rd5 {[%emt 0:00:15]} Ra4 {[%emt 0:01:05]} 60. Rd4 {[%emt 0:00:11]} Ra5+ {[%emt 0:00:11]} 61. Kf4 {[%emt 0:00:13]} Ra1 {[%emt 0:00:18]} 62. e5 {[%emt 0:00:39]} Ra7 {[%emt 0:02:07]} 63. f6+ {[%emt 0:02:40]} Kg6 {[%emt 0:01:12]} 64. Rd8 {[%emt 0:00:01]} Ra4+ {[%emt 0:01:02]} 65. Kg3 {[%emt 0:00:33]} Re4 {[%emt 0:02:26]} 66. Rg8+ {[%emt 0:00:02]} Kh7 {[%emt 0:00:04]} 67. Rg7+ {[%emt 0:00:10]} Kh8 {[%emt 0:00:03]} 68. Rxf7 {[%emt 0:00:10]} Rxe5 {[%emt 0:00:03]} 69. Kf4 {[%emt 0:00:36]} Ra5 {[%emt 0:02:09]} 70. Re7 {[%emt 0:00:26]} Kg8 {[%emt 0:01:13]} 71. Re5 {[%emt 0:00:06]} Ra4+ {[%emt 0:00:29]} 72. Kf5 {[%emt 0:00:01]} Kf7 {[%emt 0:01:18]} 73. Re7+ {[%emt 0:00:01]} Kg8 {[%emt 0:02:04]} 74. Re4 {[%emt 0:00:06]} Ra5+ {[%emt 0:01:18]} 75. Kg6 {[%emt 0:00:07]} Kf8 {[%emt 0:00:03]} 76. Kxh6 {[%emt 0:00:09]} Kf7 {[%emt 0:00:29]} 77. g5 {[%emt 0:00:06]} Ra1 {[%emt 0:00:19]} 78. Re7+ 1-0

[Event "32nd Panamerican Youth 2022"]
[Site "Montevideo"]
[Date "2022.07.02"]
[Round "9.29"]
[White "Borda Rodas, Anapaola S."]
[Black "Guo, Hazel"]
[Result "1-0"]
[ECO "C10"]
[WhiteElo "2183"]
[BlackElo "1526"]
[Annotator "RC"]
[PlyCount "85"]
[EventDate "2022.06.26"]
[EventType "swiss"]
[EventCountry "URU"]
[SourceTitle "playchess.com"]
[Source "ChessBase"]
[SourceQuality "1"]
[TimeControl "5400+30"]

1. e4 {[%emt 0:00:03]} e6 {[%emt 0:00:04]} 2. d4 {[%emt 0:00:04]} d5 {[%emt 0:00:06]} 3. Nc3 {[%emt 0:00:04]} dxe4 {[%emt 0:00:07]} 4. Nxe4 {[%emt 0:00:05]} Bd7 {[%emt 0:00:05]} 5. Nf3 {[%emt 0:00:05]} Bc6 {[%emt 0:00:04]} 6. Bd3 {[%emt 0:00:06]} Nd7 {[%emt 0:00:07]} 7. O-O {[%emt 0:00:09]} Ngf6 {[%emt 0:00:09]} 8. Ned2 {[%emt 0:00:08]} Be7 {[%emt 0:00:24]} 9. Nc4 {[%emt 0:00:10]} b6 {[%emt 0:04:06]} 10. Nce5 {[%emt 0:01:29]} Bb7 {[%emt 0:02:45]} 11. Bb5 {[%emt 0:01:37]} O-O {[%emt 0:05:19]} 12. Bc6 {[%emt 0:03:57]} Qc8 {[%emt 0:02:41]} 13. Bg5 {[%emt 0:00:46]} Bd6 {[%emt 0:02:02]} 14. Bb5 {[%emt 0:02:47]} a6 {[%emt 0:09:29]} 15. Bd3 {[%emt 0:03:20]} c5 {[%emt 0:01:33]} 16. c3 {[%emt 0:02:37]} Qc7 {[%emt 0:05:21]} 17. Re1 {[%emt 0:01:38]} h6 {[%emt 0:05:40]} 18. Bh4 {[%emt 0:02:29]} Bxf3 {[%emt 0:04:12]} 19. Nxf3 {[%emt 0:03:34]} Rfe8 {[%emt 0:01:47]} 20. Qe2 {[%emt 0:04:26]} b5 {[%emt 0:04:48]} 21. Ne5 {[%emt 0:01:05]} c4 {[%emt 0:03:29]} 22. Bc2 {[%emt 0:01:14]} Be7 {[%emt 0:02:24]} 23. Nxf7 {[%emt 0:01:36]} Nf8 {[%emt 0:01:57]} 24. Ne5 {[%emt 0:00:48]} Rac8 {[%emt 0:08:44]} 25. Qf3 {[%emt 0:01:29]} N8h7 {[%emt 0:01:45]} 26. Rad1 {[%emt 0:04:05]} Bd6 {[%emt 0:03:07]} 27. Bg6 {[%emt 0:03:27]} Rf8 {[%emt 0:03:26]} 28. Qh3 {[%emt 0:00:08]} Kh8 {[%emt 0:06:08]} 29. Qxe6 {[%emt 0:02:07]} Bxe5 {[%emt 0:00:47]} 30. dxe5 {[%emt 0:00:27]} Ng8 {[%emt 0:01:34]} 31. Rd7 {[%emt 0:00:29]} Qc5 {[%emt 0:00:21]} 32. Bf7 {[%emt 0:00:42]} Rc6 {[%emt 0:01:21]} 33. Qg4 {[%emt 0:00:09]} Qb6 {[%emt 0:01:45]} 34. Re3 {[%emt 0:01:27]} Rxf7 {[%emt 0:00:31]} 35. Rxf7 {[%emt 0:00:14]} Rg6 {[%emt 0:00:03]} 36. Qd4 {[%emt 0:00:45]} Qe6 {[%emt 0:00:21]} 37. Qd7 {[%emt 0:00:18]} Qb6 {[%emt 0:01:02]} 38. Rg3 {[%emt 0:00:10]} Ng5 {[%emt 0:00:40]} 39. Bxg5 {[%emt 0:00:01]} hxg5 {[%emt 0:00:01]} 40. Rh3+ {[%emt 0:00:46]} Nh6 {[%emt 0:00:20]} 41. Qe8+ {[%emt 0:00:09]} Kh7 {[%emt 0:00:01]} 42. Rf8 {[%emt 0:00:06]} Re6 {[%emt 0:00:12]} 43. Rh8# 1-0

[Event "32nd Panamerican Youth 2022"]
[Site "Montevideo"]
[Date "2022.07.02"]
[Round "9.30"]
[White "Bosco, Giuliana"]
[Black "Garcia Andrada, Heidy Nicole"]
[Result "1/2-1/2"]
[ECO "C00"]
[WhiteElo "1867"]
[BlackElo "1968"]
[Annotator "NA RC"]
[PlyCount "22"]
[EventDate "2022.06.26"]
[EventType "swiss"]
[EventCountry "URU"]
[SourceTitle "playchess.com"]
[Source "ChessBase"]
[SourceQuality "1"]
[TimeControl "5400+30"]

1. e4 {[%emt 0:00:03]} e6 {[%emt 0:06:38]} 2. d4 {[%emt 0:02:43]} b6 {[%emt 0:00:08]} 3. Bd3 {[%emt 0:02:39]} Bb7 {[%emt 0:00:07]} 4. Ne2 {[%emt 0:04:55]} d6 {[%emt 0:02:40]} 5. O-O {[%emt 0:02:41]} Nd7 {[%emt 0:01:11]} 6. f4 {[%emt 0:04:03]} c5 {[%emt 0:11:58]} 7. c3 {[%emt 0:03:53]} Ngf6 {[%emt 0:01:00]} 8. Nd2 {[%emt 0:02:58]} Qc7 {[%emt 0:06:26]} 9. Ng3 {[%emt 0:12:31]} g6 {[%emt 0:10:44]} 10. Nf3 {[%emt 0:09:07]} Be7 {[%emt 0:03:24]} 11. Bd2 {[%emt 0:04:44]} d5 {[%emt 0:21:31]} 1/2-1/2

[Event "32nd Panamerican Youth 2022"]
[Site "Montevideo"]
[Date "2022.07.02"]
[Round "9.31"]
[White "Ibarra Mayorga, Ximena"]
[Black "Matus, Nastassja"]
[Result "1/2-1/2"]
[ECO "D02"]
[WhiteElo "1686"]
[BlackElo "1918"]
[Annotator "NA RC"]
[PlyCount "57"]
[EventDate "2022.06.26"]
[EventType "swiss"]
[EventCountry "URU"]
[SourceTitle "playchess.com"]
[Source "ChessBase"]
[SourceQuality "1"]
[TimeControl "5400+30"]

1. d4 {[%emt 0:00:05]} d5 {[%emt 0:00:05]} 2. Nf3 {[%emt 0:00:07]} Nf6 {[%emt 0:00:11]} 3. g3 {[%emt 0:00:09]} e6 {[%emt 0:00:30]} 4. Bg2 {[%emt 0:00:07]} Bb4+ {[%emt 0:00:56]} 5. Bd2 {[%emt 0:00:17]} Bd6 {[%emt 0:00:25]} 6. c4 {[%emt 0:06:00]} Nbd7 {[%emt 0:08:45]} 7. Bc3 {[%emt 0:01:34]} Ne4 {[%emt 0:05:22]} 8. O-O {[%emt 0:05:15]} c6 {[%emt 0:02:29]} 9. Nfd2 {[%emt 0:02:05]} f5 {[%emt 0:09:08]} 10. Nxe4 {[%emt 0:22:10]} fxe4 {[%emt 0:01:47]} 11. f3 {[%emt 0:00:24]} exf3 {[%emt 0:12:54]} 12. Bxf3 {[%emt 0:00:13]} O-O {[%emt 0:05:30]} 13. e4 {[%emt 0:05:27]} dxe4 {[%emt 0:01:40]} 14. Bxe4 {[%emt 0:00:07]} Rxf1+ {[%emt 0:03:13]} 15. Qxf1 {[%emt 0:00:10]} Nf6 {[%emt 0:01:11]} 16. Bf3 {[%emt 0:01:24]} Qe7 {[%emt 0:08:03]} 17. Nd2 {[%emt 0:03:44]} Bd7 {[%emt 0:01:53]} 18. a3 {[%emt 0:03:51]} Re8 {[%emt 0:03:48]} 19. Re1 {[%emt 0:01:26]} Qf7 {[%emt 0:03:02]} 20. Qg2 {[%emt 0:05:50]} Qg6 {[%emt 0:04:31]} 21. Ne4 {[%emt 0:00:39]} Be7 {[%emt 0:07:00]} 22. Nxf6+ {[%emt 0:01:05]} Bxf6 {[%emt 0:00:53]} 23. Be4 {[%emt 0:01:49]} Qh6 {[%emt 0:04:26]} 24. Qc2 {[%emt 0:02:19]} g6 {[%emt 0:03:38]} 25. Qb3 {[%emt 0:05:59]} b6 {[%emt 0:03:18]} 26. d5 {[%emt 0:10:42]} Bxc3 {[%emt 0:01:41]} 27. Qxc3 {[%emt 0:00:05]} exd5 {[%emt 0:01:15]} 28. cxd5 {[%emt 0:00:42]} Qg7 {[%emt 0:02:05]} 29. Qd2 {[%emt 0:03:36]} 1/2-1/2